bitfinex/quotes_SOLUSD_20220212
["timestamp","ask_amount","ask_price","bid_price","bid_amount"]
[1644677023402,24.7387,94.249,94.14,15.9298]
[1644677023403,5.308,94.239,94.14,15.9298]
[1644677023602,5.308,94.243,94.141,17.85700286]
[1644677023801,5.308,94.238,94.141,17.85700286]
[1644677024007,24.7387,94.249,94.141,17.85700286]
[1644677024405,10.0229019,94.248,94.15,15.9263]
[1644677024605,10.0229019,94.248,94.151,38.05972532]
[1644677024807,4.7149019,94.247,94.151,38.05972532]
[1644677025004,4.7149019,94.248,94.151,38.05972532]
[1644677026109,5.307,94.247,94.151,38.05972532]
[1644677026309,4.7149019,94.246,94.151,38.05972532]
[1644677026708,5.307,94.245,94.16,15.9254]
[1644677026911,24.7387,94.249,94.16,15.9254]
[1644677027108,4.71975608,94.248,94.16,15.9254]
[1644677027310,24.7387,94.249,94.16,15.9254]
[1644677027910,24.0579,94.258,94.17,12.71]
[1644677028110,4.72366018,94.257,94.181,44.23705758]
[1644677028911,24.0579,94.258,94.181,44.23705758]
[1644677029911,4.72462732,94.257,94.181,44.23705758]
[1644677030713,4.72462732,94.257,94.19,15.9205]
[1644677030914,7.60392264,94.267,94.19,15.9205]
[1644677031516,4.72462732,94.267,94.191,105.1]
[1644677031722,2.87929532,94.286,94.21,15.9171]
[1644677031918,5.306,94.283,94.211,40.92716925]
[1644677032129,4.31894299,94.313,94.211,40.92716925]
[1644677032130,4.73152601,94.281,94.211,40.92716925]
[1644677032327,2.87929532,94.278,94.211,40.92716925]
[1644677032516,5.305,94.277,94.211,40.92716925]
[1644677032816,2.87929532,94.271,94.211,19.83834627]
[1644677033019,26.0,94.274,94.211,19.83834627]
[1644677033218,5.305,94.27,94.211,19.83834627]
[1644677033416,5.305,94.283,94.211,19.83834627]
[1644677033616,5.305,94.283,94.19,15.9203]
[1644677033817,2.62390296,94.269,94.18,12.71]
[1644677034017,5.306,94.268,94.18,12.71]
[1644677034219,4.43890012,94.268,94.18,12.71]
[1644677034419,4.43890012,94.275,94.18,12.71]
[1644677034620,5.556,94.274,94.18,12.71]
[1644677034817,4.43890012,94.273,94.181,47.64805388]
[1644677035022,9.74490012,94.273,94.181,47.64805388]
[1644677035222,4.68890012,94.272,94.181,47.64805388]
[1644677035458,9.74490012,94.271,94.181,47.64805388]
[1644677035651,359.88019517,94.276,94.182,105.1]
[1644677036246,359.88019517,94.276,94.191,105.1]
[1644677036447,359.38019517,94.276,94.201,105.1]
[1644677036647,359.38019517,94.276,94.202,40.16087322]
[1644677036847,359.38019517,94.276,94.211,105.1]
[1644677037049,2.87929532,94.303,94.211,114.49]
[1644677037251,2.87929532,94.307,94.211,114.49]
[1644677037449,2.87929532,94.308,94.211,114.49]
[1644677037649,2.87929532,94.312,94.221,45.19651565]
[1644677037850,4.44420491,94.33,94.23,171.59]
[1644677038051,4.44420491,94.33,94.23,181.04]
[1644677038247,2.87929532,94.343,94.23,181.04]
[1644677038447,2.87929532,94.347,94.231,12.93855064]
[1644677038648,2.87929532,94.347,94.232,105.1]
[1644677038847,2.87929532,94.344,94.251,45.7124237]
[1644677039048,2.87929532,94.344,94.261,105.1]
[1644677039248,2.87929532,94.337,94.261,105.1]
[1644677039451,2.87929532,94.337,94.262,2.62390296]
[1644677039648,2.87929532,94.335,94.251,45.7124237]
[1644677039852,2.87929532,94.315,94.251,45.7124237]
[1644677040051,2.87929532,94.298,94.21,12.71]
[1644677040252,2.87929532,94.294,94.19,12.71]
[1644677040452,0.25,94.297,94.19,12.71]
[1644677040453,2.87929532,94.291,94.19,12.71]
[1644677040651,2.87929532,94.29,94.19,12.71]
[1644677040852,0.25,94.29,94.19,12.71]
[1644677041051,2.87929532,94.288,94.191,48.17197328]
[1644677041254,0.25,94.29,94.2,15.9173]
[1644677041255,2.87929532,94.286,94.2,15.9173]
[1644677041455,5.305,94.285,94.2,15.9173]
[1644677041653,5.555,94.285,94.2,15.9173]
[1644677041854,9.94949069,94.284,94.2,15.9173]
[1644677042051,5.555,94.285,94.2,15.9173]
[1644677042052,2.87929532,94.282,94.2,15.9173]
[1644677042252,2.87929532,94.283,94.2,15.9173]
[1644677043152,2.87929532,94.282,94.2,15.9173]
[1644677043354,7.32558773,94.284,94.2,15.9173]
[1644677043554,5.305,94.283,94.2,15.9173]
[1644677043858,2.87929532,94.281,94.2,15.9173]
[1644677044259,7.32558773,94.282,94.2,15.9173]
[1644677044457,4.44629241,94.28,94.2,28.6273]
[1644677044755,4.44629241,94.28,94.201,2.62390296]
[1644677045158,4.44629241,94.279,94.201,2.62390296]
[1644677045457,7.32558773,94.284,94.201,2.62390296]
[1644677045665,2.87929532,94.283,94.201,2.62390296]
[1644677046061,2.87929532,94.283,94.2,28.6273]
[1644677046460,4.44629241,94.284,94.2,28.6273]
[1644677047262,4.44629241,94.298,94.21,15.9153]
[1644677047471,4.44629241,94.298,94.201,2.62390296]
[1644677047472,4.44629241,94.298,94.22,12.71]
[1644677047662,2.87929532,94.313,94.23,12.71]
[1644677047863,2.87929532,94.321,94.242,44.12584379]
[1644677048062,2.87929532,94.339,94.25,12.71]
[1644677048261,2.87929532,94.346,94.25,12.71]
[1644677048462,2.87929532,94.355,94.251,7.62390296]
[1644677048663,4.46571339,94.358,94.26,15.9043]
[1644677048863,4.31894299,94.381,94.271,35.46424181]
[1644677048864,4.46571339,94.359,94.271,35.46424181]
[1644677049070,2.87929532,94.356,94.28,12.71]
[1644677049266,52.7803,94.38,94.28,12.71]
[1644677049267,2.87929532,94.353,94.28,12.71]
[1644677050464,2.87929532,94.353,94.271,35.46424181]
[1644677050465,2.87929532,94.349,94.271,35.46424181]
[1644677050664,2.87929532,94.346,94.271,35.46424181]
[1644677051064,24.611,94.368,94.271,35.46424181]
[1644677051065,2.87929532,94.354,94.271,35.46424181]
[1644677051266,5.301,94.35,94.271,35.46424181]
[1644677051468,4.46444603,94.353,94.28,15.9041]
[1644677051668,4.46444603,94.365,94.28,15.9041]
[1644677051868,9.76444603,94.365,94.271,35.46424181]
[1644677052068,2.87929532,94.36,94.271,35.46424181]
[1644677052268,2.87929532,94.36,94.22,158.88]
[1644677052269,2.87929532,94.347,94.25,12.71]
[1644677052468,2.87929532,94.344,94.24,12.71]
[1644677052669,3.12929532,94.346,94.24,12.71]
[1644677052867,7.34374135,94.345,94.241,2.62390296]
[1644677053067,24.9595,94.344,94.241,2.62390296]
[1644677053270,448.72909019,94.338,94.242,44.12370719]
[1644677053667,448.72909019,94.338,94.243,2.62390296]
[1644677054269,448.72909019,94.338,94.243,107.72390296]
[1644677054469,448.72909019,94.338,94.25,15.9085]
[1644677054668,448.72909019,94.338,94.26,12.71]
[1644677054869,448.72909019,94.338,94.261,40.20223514]
[1644677055270,448.72909019,94.338,94.261,147.9261381]
[1644677055469,448.72909019,94.338,94.262,2.62390296]
[1644677056174,5.301,94.369,94.262,2.62390296]
[1644677056373,2.62390296,94.361,94.262,2.62390296]
[1644677056578,2.62390296,94.361,94.28,15.9021]
[1644677056872,5.301,94.36,94.281,40.78723499]
[1644677057272,27.9626,94.37,94.281,40.78723499]
[1644677057473,2.87390296,94.359,94.28,12.71]
[1644677057675,2.87390296,94.359,94.245,2.62390296]
[1644677057676,4.46211834,94.358,94.25,15.9077]
[1644677057876,47.2933,94.357,94.25,12.71]
[1644677058075,9.76311834,94.356,94.23,12.71]
[1644677058276,2.87929532,94.349,94.23,12.71]
[1644677058475,2.87929532,94.344,94.231,44.37150105]
[1644677058677,2.87929532,94.341,94.231,44.37150105]
[1644677059077,0.25,94.34,94.232,4.15256]
[1644677059277,4.46211834,94.339,94.232,4.15256]
[1644677059479,358.18103551,94.332,94.232,4.15256]
[1644677059682,4.46211834,94.331,94.232,4.15256]
[1644677059878,28.39651834,94.331,94.232,4.15256]
[1644677060078,4.46211834,94.33,94.232,4.15256]
[1644677060280,0.25,94.329,94.232,4.15256]
[1644677060487,5.303,94.328,94.232,4.15256]
[1644677060679,9.76511834,94.328,94.232,4.15256]
[1644677060879,4.71211834,94.327,94.232,4.15256]
[1644677061080,33.28641834,94.326,94.232,4.15256]
[1644677061280,4.71211834,94.325,94.232,4.15256]
[1644677061491,5.303,94.324,94.24,15.9105]
[1644677061699,23.5213,94.326,94.25,12.71]
[1644677061897,23.5213,94.326,94.251,46.54620668]
[1644677062496,23.5213,94.326,94.251,46.04620668]
[1644677064099,0.25,94.325,94.251,46.04620668]
[1644677064300,5.301,94.324,94.251,46.04620668]
[1644677064702,0.25,94.323,94.251,46.04620668]
[1644677064897,5.301,94.322,94.251,46.04620668]
[1644677065097,23.5213,94.326,94.251,46.04620668]
[1644677067098,0.25,94.325,94.251,46.04620668]
[1644677067499,23.6844,94.331,94.251,46.04620668]
[1644677067700,23.6844,94.331,94.26,12.71]
[1644677067903,358.18103551,94.332,94.26,12.71]
[1644677068101,358.18103551,94.332,94.26,28.6177]
[1644677068306,358.18103551,94.332,94.261,107.72390296]
[1644677068604,358.18103551,94.332,94.261,2.62390296]
[1644677068801,358.18103551,94.332,94.262,2.62390296]
[1644677069202,5.301,94.356,94.262,2.62390296]
[1644677069401,5.301,94.356,94.27,15.9049]
[1644677069603,2.87929532,94.373,94.28,12.71]
[1644677070006,47.3926,94.376,94.281,2.62390296]
[1644677070606,47.3926,94.376,94.3,15.9008]
[1644677070810,47.3926,94.376,94.301,39.01921592]
[1644677071005,47.3926,94.376,94.301,41.64311888]
[1644677071205,47.3926,94.376,94.302,2.62390296]
[1644677071708,2.87929532,94.384,94.31,15.8993]
[1644677071908,354.59862004,94.385,94.32,12.71]
[1644677072207,354.59862004,94.385,94.321,44.69230932]
[1644677072407,354.59862004,94.385,94.321,47.31621228]
[1644677072805,354.59862004,94.385,94.322,2.62390296]
[1644677073008,354.59862004,94.385,94.33,15.8919]
[1644677073205,2.87929532,94.404,94.322,2.62390296]
[1644677073410,2.62390296,94.414,94.321,44.69230932]
[1644677073411,5.299,94.384,94.321,44.69230932]
[1644677073606,2.87929532,94.399,94.321,44.69230932]
[1644677073805,2.87929532,94.405,94.321,44.69230932]
[1644677074008,2.87929532,94.403,94.321,44.69230932]
[1644677074207,2.87929532,94.406,94.33,15.8968]
[1644677074506,2.87929532,94.411,94.33,28.6068]
[1644677074707,2.87929532,94.418,94.33,28.6068]
[1644677075308,113.0,94.407,94.321,44.69230932]
[1644677075705,2.87929532,94.394,94.321,44.69230932]
[1644677075910,5.298,94.393,94.321,44.69230932]
[1644677076413,2.87929532,94.388,94.321,44.69230932]
[1644677076620,2.87929532,94.391,94.3,12.71]
[1644677076825,2.87929532,94.382,94.28,12.71]
[1644677077025,2.87929532,94.372,94.27,12.71]
[1644677077223,2.87929532,94.371,94.27,12.71]
[1644677077420,2.87929532,94.374,94.27,12.71]
[1644677077621,2.87929532,94.373,94.28,15.9043]
[1644677077822,2.87929532,94.365,94.28,15.9043]
[1644677078029,2.87929532,94.368,94.28,15.9043]
[1644677078231,3.12929532,94.367,94.28,15.9043]
[1644677078425,2.87929532,94.365,94.271,39.14900158]
[1644677078823,5.301,94.364,94.271,39.14900158]
[1644677079231,15.9085,94.36,94.271,39.14900158]
[1644677080024,0.25,94.359,94.271,39.14900158]
[1644677080225,5.551,94.359,94.271,39.14900158]
[1644677080449,8.18029532,94.359,94.271,39.14900158]
[1644677080624,5.301,94.359,94.271,39.14900158]
[1644677081025,2.87929532,94.366,94.271,39.14900158]
[1644677081225,5.301,94.358,94.271,39.14900158]
[1644677081426,8.18029532,94.365,94.271,39.14900158]
[1644677081725,2.87929532,94.368,94.271,39.14900158]
[1644677081925,2.87929532,94.37,94.271,39.14900158]
[1644677082125,5.301,94.369,94.271,39.14900158]
[1644677082526,48.8631,94.372,94.28,15.9052]
[1644677082727,51.74239532,94.372,94.28,28.6152]
[1644677083529,48.8631,94.372,94.28,28.6152]
[1644677083928,48.8631,94.372,94.28,133.7152]
[1644677084125,5.3,94.371,94.28,28.6152]
[1644677084527,5.3,94.371,94.28,12.71]
[1644677084726,2.87929532,94.367,94.28,12.71]
[1644677084927,8.17929532,94.366,94.28,12.71]
[1644677085126,2.87929532,94.366,94.28,12.71]
[1644677085326,48.8631,94.372,94.28,12.71]
[1644677085327,2.87929532,94.362,94.28,12.71]
[1644677085527,2.87929532,94.364,94.28,12.71]
[1644677085830,0.25,94.361,94.271,39.14900158]
[1644677086030,5.301,94.363,94.271,39.14900158]
[1644677086226,2.87929532,94.365,94.271,39.14900158]
[1644677086427,2.87929532,94.366,94.271,39.14900158]
[1644677086830,0.25,94.365,94.271,39.14900158]
[1644677087429,2.87929532,94.368,94.271,39.14900158]
[1644677087631,5.301,94.367,94.271,39.14900158]
[1644677087834,0.25,94.367,94.271,39.14900158]
[1644677088251,2.87929532,94.368,94.28,15.9047]
[1644677088452,5.301,94.367,94.28,15.9047]
[1644677088656,5.551,94.367,94.271,39.14900158]
[1644677088854,2.87929532,94.36,94.271,39.14900158]
[1644677089055,2.87929532,94.359,94.271,39.14900158]
[1644677089252,0.25,94.359,94.271,39.14900158]
[1644677089454,2.87929532,94.357,94.271,39.14900158]
[1644677089655,5.301,94.356,94.271,39.14900158]
[1644677089854,2.87929532,94.352,94.271,39.14900158]
[1644677090261,3.12929532,94.351,94.271,39.14900158]
[1644677090453,2.87929532,94.35,94.271,39.14900158]
[1644677090655,2.87929532,94.355,94.271,39.14900158]
[1644677090856,2.87929532,94.356,94.271,39.14900158]
[1644677091054,5.301,94.355,94.271,39.14900158]
[1644677091263,8.18029532,94.357,94.271,39.14900158]
[1644677091456,2.87929532,94.356,94.271,39.14900158]
[1644677091662,5.301,94.355,94.271,39.14900158]
[1644677092055,8.18029532,94.358,94.271,39.14900158]
[1644677092256,23.154,94.359,94.271,39.14900158]
[1644677092257,2.87929532,94.357,94.271,39.14900158]
[1644677092457,2.87929532,94.356,94.271,39.14900158]
[1644677092656,2.87929532,94.355,94.271,39.14900158]
[1644677092855,3.12929532,94.356,94.271,39.14900158]
[1644677093256,0.25,94.356,94.271,39.14900158]
[1644677093464,0.25,94.356,94.27,15.9064]
[1644677093660,7.92490296,94.355,94.25,28.6168]
[1644677093864,2.87929532,94.346,94.169,2.95936796]
[1644677094058,2.87929532,94.346,94.15,158.88]
[1644677094059,2.87929532,94.334,94.179,4.1549]
[1644677094262,2.87929532,94.315,94.179,4.1549]
[1644677094456,12.71,94.3,94.18,44.49966789]
[1644677094658,23.0724,94.299,94.182,4.15476]
[1644677094858,46.81768627,94.299,94.182,4.15476]
[1644677095057,15.9222,94.29,94.182,4.15476]
[1644677095258,5.305,94.289,94.182,4.15476]
[1644677095459,547.19871128,94.273,94.182,4.15476]
[1644677095860,5.556,94.272,94.182,4.15476]
[1644677096062,0.25,94.272,94.182,4.15476]
[1644677096261,47.7289,94.272,94.182,4.15476]
[1644677097061,53.0349,94.272,94.182,4.15476]
[1644677097661,0.25,94.271,94.182,4.15476]
[1644677097862,5.306,94.27,94.182,4.15476]
[1644677098063,37.53874233,94.27,94.182,4.15476]
[1644677098262,0.25,94.269,94.12,12.71]
[1644677098462,2.87929532,94.258,94.121,4.15746]
[1644677098662,121.09984529,94.269,94.121,4.15746]
[1644677098663,30.0129,94.257,94.121,4.15746]
[1644677098864,24.9549,94.257,94.121,4.15746]
[1644677099167,24.7049,94.257,94.122,42.40571363]
[1644677099363,5.308,94.256,94.124,4.15732]
[1644677100765,0.25,94.255,94.124,4.15732]
[1644677100965,5.308,94.254,94.122,39.78181067]
[1644677101165,12.71,94.25,94.122,39.78181067]
[1644677101365,5.788,94.249,94.122,39.78181067]
[1644677101566,2.87929532,94.246,94.122,39.78181067]
[1644677101766,2.87929532,94.244,94.122,39.78181067]
[1644677101969,12.71,94.23,94.122,39.78181067]
[1644677102165,5.309,94.229,94.122,39.78181067]
[1644677102367,15.9386,94.22,94.122,39.78181067]
[1644677102565,5.309,94.219,94.08,12.71]
[1644677102768,30.5419,94.219,94.082,4.15918]
[1644677102972,39.02543177,94.218,94.082,4.15918]
[1644677103167,5.309,94.217,94.082,4.15918]
[1644677103467,40.15467773,94.217,94.082,4.15918]
[1644677103667,15.9379,94.21,94.082,4.15918]
[1644677103866,53.1471,94.19,94.082,4.15918]
[1644677104067,12.71,94.18,94.082,4.15918]
[1644677104269,0.25,94.179,94.082,4.15918]
[1644677104468,5.311,94.178,94.082,4.15918]
[1644677104667,15.9446,94.17,94.082,4.15918]
[1644677104869,12.71,94.16,94.082,4.15918]
[1644677105068,5.312,94.159,94.082,4.15918]
[1644677105270,5.562,94.159,94.082,4.15918]
[1644677105670,0.25,94.159,94.083,41.27148923]
[1644677105868,7.93590296,94.158,94.085,4.15905]
[1644677106067,16.45590296,94.158,94.085,4.15905]
[1644677106268,2.87390296,94.157,94.085,4.15905]
[1644677106474,5.312,94.156,94.085,4.15905]
[1644677106669,7.93590296,94.156,94.085,4.15905]
[1644677106874,15.31602827,94.155,94.085,4.15905]
[1644677107070,15.9488,94.14,94.085,4.15905]
[1644677107269,12.71,94.13,94.085,4.15905]
[1644677107470,5.313,94.129,94.085,4.15905]
[1644677107670,5.563,94.129,94.085,4.15905]
[1644677107869,5.563,94.129,93.991,46.70723447]
[1644677108071,15.9528,94.12,93.992,4.16316]
[1644677108275,12.71,94.11,93.992,4.16316]
[1644677108570,28.894,94.109,93.992,4.16316]
[1644677108769,29.144,94.109,93.992,4.16316]
[1644677111173,28.894,94.109,93.993,2.62390296]
[1644677111572,28.894,94.109,93.991,46.70723447]
[1644677112375,15.9558,94.1,93.991,46.70723447]
[1644677112578,5.316,94.099,93.991,46.70723447]
[1644677112775,5.566,94.099,93.991,46.70723447]
[1644677112975,9.66234922,94.099,93.991,46.70723447]
[1644677113174,17.76503244,94.098,93.991,46.70723447]
[1644677113376,24.2798,94.097,93.991,46.70723447]
[1644677113576,5.316,94.096,93.991,46.70723447]
[1644677113779,15.9572,94.09,93.94,15.9591]
[1644677113983,5.317,94.089,93.9,53.2083]
[1644677114179,5.567,94.089,93.915,15.53604782]
[1644677114484,34.59567773,94.088,93.92,12.71]
[1644677114678,5.317,94.087,93.921,4.16631]
[1644677114879,40.16267773,94.087,93.922,35.47556131]
[1644677115079,15.9623,94.06,93.924,4.16618]
[1644677115279,70.7228,94.059,93.924,4.16618]
[1644677115479,76.0418,94.059,93.924,4.16618]
[1644677115677,75.7918,94.059,93.93,12.71]
[1644677115877,70.4728,94.059,93.932,4.16582]
[1644677116079,497.47647654,94.062,93.932,4.16582]
[1644677116279,5.319,94.061,93.951,39.68059356]
[1644677116479,497.47647654,94.062,93.96,12.71]
[1644677116678,497.47647654,94.062,93.971,5.0]
[1644677116881,497.47647654,94.062,93.98,12.71]
[1644677117083,5.317,94.112,93.98,12.71]
[1644677117280,5.317,94.098,94.01,15.949]
[1644677117581,361.51534822,94.113,94.01,15.949]
[1644677117582,5.316,94.112,94.011,43.25759851]
[1644677117784,5.316,94.112,94.011,45.88150147]
[1644677118786,0.25,94.111,94.011,45.88150147]
[1644677118979,5.315,94.11,94.011,45.88150147]
[1644677119180,23.0648,94.112,94.011,45.88150147]
[1644677119683,23.0648,94.112,94.011,43.25759851]
[1644677119880,15.9527,94.11,94.011,43.25759851]
[1644677120084,5.315,94.109,94.011,43.25759851]
[1644677120482,0.25,94.108,94.011,43.25759851]
[1644677120683,5.315,94.107,94.011,43.25759851]
[1644677120883,5.315,94.107,93.97,12.71]
[1644677121084,46.7191,94.106,93.97,12.71]
[1644677121495,5.316,94.105,93.97,12.71]
[1644677121713,15.9545,94.1,93.971,2.62390296]
[1644677121890,5.317,94.099,93.972,48.0851187]
[1644677122085,5.567,94.099,93.972,48.0851187]
[1644677122289,22.9162,94.098,93.973,4.164]
[1644677122489,5.317,94.097,93.973,4.164]
[1644677122685,5.567,94.097,93.973,4.164]
[1644677123888,5.567,94.097,93.98,15.9543]
[1644677124088,5.567,94.097,93.981,4.16365]
[1644677124899,1.43611103,94.088,93.981,4.16365]
[1644677125095,5.317,94.087,93.981,4.16365]
[1644677125297,1.43611103,94.072,93.981,4.16365]
[1644677125497,1.43611103,94.07,93.981,4.16365]
[1644677125698,1.43611103,94.068,93.981,4.16365]
[1644677125895,1.43611103,94.064,93.981,4.16365]
[1644677126095,1.43611103,94.058,93.981,4.16365]
[1644677126296,1.43611103,94.056,93.981,4.16365]
[1644677126493,15.9645,94.05,93.981,4.16365]
[1644677126696,1.43611103,94.04,93.981,4.16365]
[1644677126895,6.75311103,94.039,93.981,4.16365]
[1644677127095,1.43611103,94.036,93.981,4.16365]
[1644677127295,1.43611103,94.034,93.981,4.16365]
[1644677127499,1.43611103,94.033,93.981,4.16365]
[1644677127795,15.9658,94.03,93.942,38.79892231]
[1644677128195,7.00511103,94.029,93.942,42.96430231]
[1644677128596,5.569,94.029,93.942,42.96430231]
[1644677128995,5.569,94.029,93.942,38.79892231]
[1644677129613,1.43611103,94.009,93.93,12.71]
[1644677129814,6.75611103,94.008,93.93,12.71]
[1644677130019,1.43611103,94.007,93.93,12.71]
[1644677130213,1.43611103,94.004,93.93,12.71]
[1644677130415,1.43611103,94.005,93.93,12.71]
[1644677130613,1.43611103,94.007,93.931,41.22621735]
[1644677130814,0.25,94.004,93.931,41.22621735]
[1644677131015,1.43611103,94.007,93.931,41.22621735]
[1644677131216,1.43611103,94.011,93.931,41.22621735]
[1644677131415,1.43611103,94.012,93.931,41.22621735]
[1644677131615,1.43611103,94.017,93.931,43.85012031]
[1644677132016,1.43611103,94.023,93.932,105.1]
[1644677132215,48.5786,94.069,93.932,105.1]
[1644677132216,1.43611103,94.029,93.932,105.1]
[1644677132419,1.43611103,94.032,93.932,105.1]
[1644677132619,1.43611103,94.03,93.932,105.1]
[1644677132817,1.43611103,94.032,93.941,105.1]
[1644677133015,1.43611103,94.032,93.95,12.71]
[1644677133218,1.43611103,94.039,93.951,37.20762412]
[1644677133420,1.43611103,94.04,93.951,37.20762412]
[1644677133818,1.43611103,94.043,93.951,37.20762412]
[1644677134016,1.43611103,94.034,93.96,15.9562]
[1644677134218,1.43611103,94.034,93.97,12.71]
[1644677134416,1.43611103,94.034,93.971,41.01626095]
[1644677134618,1.43611103,94.036,93.883,1.47140531]
[1644677134821,1.43611103,94.022,93.93,12.71]
[1644677135019,1.43611103,94.022,93.88,158.88]
[1644677135020,1.43611103,94.01,93.92,12.71]
[1644677135222,1.43611103,94.001,93.93,15.9642]
[1644677135423,1.43611103,94.012,93.94,12.71]
[1644677135621,1.43611103,94.014,93.941,42.01064867]
[1644677136022,1.43611103,94.017,93.941,42.01064867]
[1644677136623,1.43611103,94.018,93.941,42.01064867]
[1644677136825,1.43611103,94.02,93.95,15.9615]
[1644677137023,1.43611103,94.012,93.95,15.9615]
[1644677137325,1.43611103,94.013,93.95,15.9615]
[1644677137726,1.43611103,94.016,93.95,15.9615]
[1644677137922,1.43611103,94.015,93.95,15.9615]
[1644677138122,1.43611103,94.015,93.941,42.01064867]
[1644677138323,1.43611103,94.01,93.941,42.01064867]
[1644677138524,1.43611103,94.006,93.941,42.01064867]
[1644677138723,1.43611103,94.016,93.941,42.01064867]
[1644677138923,1.43611103,94.018,93.941,42.01064867]
[1644677139124,1.43611103,94.017,93.941,42.01064867]
[1644677139523,1.43611103,94.016,93.941,42.01064867]
[1644677139925,1.43611103,94.014,93.941,42.01064867]
[1644677140729,1.43611103,94.015,93.95,15.9618]
[1644677141024,48.9973,94.032,93.95,15.9618]
[1644677141025,1.43611103,94.017,93.95,15.9618]
[1644677141427,1.43611103,94.014,93.95,15.9618]
[1644677141725,48.9973,94.032,93.941,42.01064867]
[1644677141726,1.43611103,94.013,93.941,42.01064867]
[1644677141925,1.43611103,94.01,93.941,42.01064867]
[1644677142125,1.43611103,94.004,93.941,42.01064867]
[1644677142727,1.43611103,94.009,93.941,41.51064867]
[1644677143329,1.43611103,94.009,93.95,15.9622]
[1644677143527,1.43611103,94.017,93.95,15.9622]
[1644677144127,1.43611103,94.014,93.941,41.51064867]
[1644677144328,1.43611103,94.008,93.941,41.51064867]
[1644677144530,1.43611103,94.005,93.941,41.51064867]
[1644677145126,1.43611103,94.004,93.941,41.51064867]
[1644677145327,1.43611103,94.01,93.941,41.51064867]
[1644677145531,1.43611103,94.014,93.941,41.51064867]
[1644677145930,1.43611103,94.015,93.95,15.9618]
[1644677146129,1.43611103,94.013,93.95,15.9618]
[1644677146330,1.43611103,94.014,93.95,15.9618]
[1644677146630,5.32,94.013,93.95,15.9618]
[1644677146831,1.43611103,94.019,93.95,15.9618]
[1644677147032,5.32,94.018,93.95,15.9618]
[1644677147331,1.43611103,94.019,93.95,15.9618]
[1644677147730,1.43611103,94.02,93.95,15.9618]
[1644677148135,4.15384,94.019,93.95,15.9618]
[1644677148931,1.43611103,94.014,93.95,15.9618]
[1644677149133,4.15384,94.012,93.95,15.9618]
[1644677149832,4.15384,94.012,93.941,41.51064867]
[1644677150233,1.43611103,94.009,93.93,15.9643]
[1644677150435,1.43611103,94.005,93.91,12.71]
[1644677150640,1.43611103,94.0,93.9,53.2225]
[1644677150838,1.43611103,93.992,93.9,53.2225]
[1644677151035,1.43611103,93.994,93.91,12.71]
[1644677151235,1.43611103,93.996,93.91,12.71]
[1644677151436,5.321,94.003,93.91,12.71]
[1644677151744,15.9693,94.0,93.91,28.6777]
[1644677151937,5.321,93.999,93.91,28.6777]
[1644677152138,1.43611103,93.999,93.91,28.6777]
[1644677152334,1.43611103,93.998,93.91,28.6777]
[1644677152534,1.43611103,93.997,93.91,28.6777]
[1644677152735,17.40541103,94.0,93.91,28.6777]
[1644677152935,15.9693,94.0,93.91,28.6777]
[1644677153542,15.9693,94.0,93.91,30.14910531]
[1644677153836,15.9693,94.0,93.911,1.47140531]
[1644677154038,4.15384,93.998,93.911,1.47140531]
[1644677154238,0.25,93.997,93.911,1.47140531]
[1644677154439,4.15384,93.995,93.91,15.9677]
[1644677154641,5.321,93.994,93.91,15.9677]
[1644677154839,4.15384,93.992,93.91,15.9677]
[1644677155239,0.25,93.991,93.91,15.9677]
[1644677155460,4.15384,93.989,93.91,15.9677]
[1644677156839,5.322,93.988,93.91,15.9677]
[1644677157039,4.15384,93.989,93.91,15.9677]
[1644677157240,5.322,93.987,93.91,15.9677]
[1644677157440,4.15384,93.989,93.91,15.9677]
[1644677158542,5.322,93.988,93.904,1.47140531]
[1644677158739,29.8236,93.988,93.89,28.6815]
[1644677158939,24.5016,93.988,93.89,28.6815]
[1644677159142,9.47584,93.987,93.89,28.6815]